bitfinex/quotes_BTCUSD_20240811
["timestamp","ask_amount","ask_price","bid_price","bid_amount"]
[1723394506634,0.354223,60306.0,60305.0,0.14189943]
[1723394506845,0.354223,60306.0,60305.0,0.1417]
[1723394507049,0.354223,60306.0,60305.0,0.1407]
[1723394507419,0.359223,60306.0,60305.0,0.1417]
[1723394508610,0.591372,60306.0,60305.0,0.1417]
[1723394508827,0.359223,60306.0,60305.0,0.14189943]
[1723394509031,0.011,60306.0,60305.0,0.25797543]
[1723394509229,0.011,60306.0,60305.0,0.14189943]
[1723394509811,0.011,60306.0,60305.0,0.25797543]
[1723394511133,0.359223,60306.0,60305.0,0.1417]
[1723394511350,0.591372,60306.0,60305.0,0.1417]
[1723394511551,0.59915041,60306.0,60305.0,0.1417]
[1723394512162,0.59915041,60306.0,60305.0,0.1407]
[1723394512365,0.59315041,60306.0,60305.0,0.1407]
[1723394512561,0.59915041,60306.0,60305.0,0.1417]
[1723394512771,0.59915041,60306.0,60305.0,0.0648]
[1723394513069,0.59415041,60306.0,60305.0,0.001]
[1723394513314,0.59915041,60306.0,60305.0,0.002]
[1723394514326,0.59415041,60306.0,60305.0,0.001]
[1723394514470,0.59315041,60306.0,60305.0,0.001]
[1723394514878,0.59915041,60306.0,60305.0,0.002]
[1723394516362,0.99764277,60306.0,60305.0,0.002]
[1723394516562,1.54885148,60306.0,60305.0,0.002]
[1723394516738,1.60557962,60306.0,60305.0,0.002]
[1723394516993,1.60641062,60306.0,60305.0,0.002]
[1723394517460,1.66078996,60306.0,60305.0,0.002]
[1723394517665,1.66078996,60306.0,60300.0,0.0009141]
[1723394517666,0.58042,60301.0,60300.0,0.0613141]
[1723394517870,0.58819548,60301.0,60300.0,0.0613141]
[1723394518468,0.90220994,60301.0,60300.0,0.0613141]
[1723394519076,0.91120994,60301.0,60300.0,0.0019141]
[1723394519282,0.99310994,60301.0,60300.0,0.0019141]
[1723394519979,1.00110994,60301.0,60300.0,0.0019141]
[1723394521535,1.46729343,60301.0,60300.0,0.0019141]
[1723394521741,1.58729343,60301.0,60300.0,0.0019141]
[1723394522702,1.63688832,60301.0,60300.0,0.0019141]
[1723394523152,3.13232932,60301.0,60300.0,0.0019141]
[1723394523369,3.31327911,60301.0,60300.0,0.0019141]
[1723394523586,3.18929188,60301.0,60300.0,0.0019141]
[1723394524243,3.3133082,60301.0,60300.0,0.0019141]
[1723394525189,3.31340511,60301.0,60300.0,0.0019141]
[1723394526500,3.31341564,60301.0,60300.0,0.0019141]
[1723394526940,3.47753024,60301.0,60300.0,0.0019141]
[1723394527402,3.35350339,60301.0,60300.0,0.0019141]
[1723394527862,3.60867139,60301.0,60300.0,1e-07]
[1723394528808,3.60069435,60301.0,60300.0,1e-07]
[1723394529063,3.60069435,60301.0,60299.0,0.000913]
[1723394529064,1.38234657,60300.0,60299.0,0.000913]
[1723394529303,1.78354599,60300.0,60299.0,0.000913]
[1723394529759,2.01571799,60300.0,60299.0,0.000913]
[1723394529966,2.24296769,60300.0,60299.0,0.000913]
[1723394530131,2.45466769,60300.0,60299.0,0.001913]
[1723394531336,2.25496769,60300.0,60299.0,0.001913]
[1723394531748,2.26696769,60300.0,60299.0,0.001913]
[1723394533007,3.53024069,60300.0,60299.0,0.001913]
[1723394534665,3.53937069,60300.0,60299.0,0.001913]
[1723394535981,3.53937069,60300.0,60299.0,1e-06]
[1723394536396,3.31306049,60300.0,60299.0,1e-06]
[1723394536524,3.45414316,60300.0,60299.0,1e-06]
[1723394537349,2.80331389,60300.0,60299.0,1e-06]
[1723394537548,2.54253477,60300.0,60299.0,1e-06]
[1723394538170,2.53340477,60300.0,60299.0,1e-06]
[1723394538735,2.61340477,60300.0,60299.0,1e-06]
[1723394539793,2.78800477,60300.0,60299.0,1e-06]
[1723394539995,2.61340477,60300.0,60299.0,1e-06]
[1723394540906,1.35013177,60300.0,60299.0,1e-06]
[1723394541910,1.35013177,60300.0,60299.0,0.0009151]
[1723394544316,1.41145308,60300.0,60299.0,0.0009151]
[1723394544510,1.42159382,60300.0,60299.0,0.0009151]
[1723394546297,1.44159382,60300.0,60299.0,0.0009151]
[1723394546897,1.38027251,60300.0,60299.0,0.0009151]
[1723394547044,1.44237277,60300.0,60299.0,0.0009151]
[1723394547684,1.42237277,60300.0,60299.0,0.0009151]
[1723394547848,1.36027251,60300.0,60299.0,0.0009151]
[1723394548055,1.42231271,60300.0,60299.0,0.0009151]
[1723394549200,1.42237753,60300.0,60299.0,0.0009151]
[1723394549755,0.94434428,60300.0,60299.0,0.1465151]
[1723394555374,0.94517528,60300.0,60299.0,0.1465151]
[1723394555873,0.93317528,60300.0,60299.0,0.1465141]
[1723394557050,0.92117528,60300.0,60299.0,0.1465141]
[1723394557436,0.94117528,60300.0,60299.0,0.1475141]
[1723394557587,0.93117528,60300.0,60299.0,0.1465141]
[1723394557950,0.94017528,60300.0,60299.0,0.1475141]
[1723394558154,0.93017528,60300.0,60299.0,0.1475141]
[1723394558364,0.93117528,60300.0,60299.0,0.1465141]
[1723394558801,0.93017528,60300.0,60299.0,0.1475141]
[1723394558998,0.94017528,60300.0,60299.0,0.1475141]
[1723394560833,0.93017528,60300.0,60299.0,0.1475141]
[1723394561592,0.94017528,60300.0,60299.0,0.1475141]
[1723394570003,1.02017528,60300.0,60299.0,0.1475141]
[1723394571533,1.1839902,60300.0,60299.0,0.1475141]
[1723394572635,1.19379077,60300.0,60299.0,0.0019141]
[1723394573378,1.1839902,60300.0,60299.0,0.0019141]
[1723394573586,1.19379077,60300.0,60299.0,0.0019141]
[1723394576394,1.1839902,60300.0,60299.0,0.0019141]
[1723394577349,1.25392137,60300.0,60299.0,0.0019141]
[1723394577750,1.34805415,60300.0,60299.0,0.0019141]
[1723394577947,1.16805415,60300.0,60299.0,0.0791141]
[1723394578182,1.0839902,60300.0,60299.0,0.1410141]
[1723394579658,0.02757328,60300.0,60299.0,0.25730153]
[1723394579850,0.02757328,60300.0,60299.0,0.62576265]
[1723394580277,0.02757328,60300.0,60299.0,0.62574605]
[1723394580601,0.01857328,60300.0,60299.0,0.25630153]
[1723394580802,0.02757328,60300.0,60299.0,0.39328816]
[1723394581226,0.01757328,60300.0,60299.0,0.39328816]
[1723394581433,0.00857328,60300.0,60299.0,0.39428816]
[1723394581849,0.00857328,60300.0,60299.0,0.39228816]
[1723394582070,0.00957328,60300.0,60299.0,0.62646416]
[1723394582238,0.00957328,60300.0,60299.0,0.62446416]
[1723394582449,0.001831,60300.0,60299.0,0.62446416]
[1723394582641,0.01058847,60300.0,60299.0,0.62946416]
[1723394582883,0.01058847,60300.0,60299.0,0.49347753]
[1723394583032,0.01058847,60300.0,60299.0,0.62942468]
[1723394583252,0.00958847,60300.0,60299.0,0.62742468]
[1723394583435,0.01058847,60300.0,60299.0,0.63442468]
[1723394583661,0.002831,60300.0,60299.0,0.63442468]
[1723394583843,0.002831,60300.0,60299.0,0.62742468]
[1723394584045,0.00958856,60300.0,60299.0,0.62742468]
[1723394584248,0.01058856,60300.0,60299.0,0.63342468]
[1723394584463,0.00958856,60300.0,60299.0,0.63042468]
[1723394584662,0.01058856,60300.0,60299.0,0.63242468]
[1723394585011,0.00958856,60300.0,60299.0,0.63042468]
[1723394585186,0.00958856,60300.0,60299.0,0.63242468]
[1723394585365,0.01058856,60300.0,60299.0,0.63242468]
[1723394585574,0.00838896,60300.0,60299.0,0.62442468]
[1723394585768,0.00838896,60300.0,60299.0,0.85860068]
[1723394585969,0.01038896,60300.0,60299.0,0.63142468]
[1723394586170,0.0016314,60300.0,60299.0,0.62942468]
[1723394586371,0.0016314,60300.0,60299.0,0.62442468]
[1723394586372,0.0006314,60300.0,60299.0,0.62442468]
[1723394587038,0.0016314,60300.0,60299.0,0.39724868]
[1723394587242,0.00938874,60300.0,60299.0,0.39724868]
[1723394587407,0.00938874,60300.0,60299.0,0.39424868]
[1723394587604,0.01038874,60300.0,60299.0,0.63242468]
[1723394587802,0.00938874,60300.0,60299.0,0.26230153]
[1723394588232,0.01038874,60300.0,60299.0,0.26430153]
[1723394588404,0.00938874,60300.0,60299.0,0.26230153]
[1723394588788,0.01038874,60300.0,60299.0,0.26430153]
[1723394588972,0.00838874,60300.0,60299.0,0.48847753]
[1723394589175,0.00838874,60300.0,60299.0,0.25630153]
[1723394589376,0.01038874,60300.0,60299.0,0.26330153]
[1723394589801,0.00938874,60300.0,60299.0,0.25830153]
[1723394590140,0.00938874,60300.0,60299.0,0.26430153]
[1723394590141,0.01038874,60300.0,60299.0,0.26430153]
[1723394590314,0.01038874,60300.0,60299.0,0.49647753]
[1723394590519,0.00938874,60300.0,60299.0,0.49047753]
[1723394590725,0.00838874,60300.0,60299.0,0.25630153]
[1723394590973,0.01038874,60300.0,60299.0,0.49547753]
[1723394591309,0.00938874,60300.0,60299.0,0.49347753]
[1723394591600,0.01038856,60300.0,60299.0,0.49547753]
[1723394593890,0.01038856,60300.0,60299.0,0.72765353]
[1723394594069,0.01038856,60300.0,60299.0,0.86377677]
[1723394594265,0.0026314,60300.0,60299.0,0.86377677]
[1723394595900,0.0026314,60300.0,60299.0,0.63160077]
[1723394596656,0.01039808,60300.0,60299.0,0.63160077]
[1723394596856,0.01039808,60300.0,60299.0,0.86377677]
[1723394597114,0.0026314,60300.0,60299.0,0.86377677]
[1723394597317,0.0026314,60300.0,60299.0,0.72765353]
[1723394597533,0.0026314,60300.0,60299.0,0.8641171]
[1723394598189,0.0026314,60300.0,60299.0,0.6319411]
[1723394598361,0.0026314,60300.0,60299.0,0.3997651]
[1723394598592,0.0026314,60300.0,60299.0,0.6319411]
[1723394599070,0.01041547,60300.0,60299.0,0.6319411]
[1723394600042,0.01041547,60300.0,60299.0,0.8641171]
[1723394600418,0.0026314,60300.0,60299.0,0.8641171]
[1723394600997,0.0026314,60300.0,60299.0,0.72765353]
[1723394601226,0.0026314,60300.0,60299.0,0.86371011]
[1723394601426,0.0026314,60300.0,60299.0,0.72765353]
[1723394601629,0.0026314,60300.0,60299.0,0.86371911]
[1723394603843,0.0026314,60300.0,60299.0,1.09589511]
[1723394608044,0.0026314,60300.0,60299.0,0.95982953]
[1723394608247,0.0026314,60300.0,60299.0,1.09591604]
[1723394612305,0.0026314,60300.0,60299.0,0.95982953]
[1723394612683,0.0026314,60300.0,60299.0,1.09631411]
[1723394613818,0.0026314,60300.0,60299.0,0.86413811]
[1723394619005,0.0026314,60300.0,60299.0,0.72765353]
[1723394619225,0.0026314,60300.0,60299.0,0.86415361]
[1723394622621,0.0026314,60300.0,60299.0,0.86416519]
[1723394623236,0.0026314,60300.0,60299.0,0.72765353]
[1723394623407,0.0026314,60300.0,60299.0,0.86422487]
[1723394626592,0.0026314,60300.0,60299.0,0.86417808]
[1723394630318,0.0026314,60300.0,60299.0,0.86419839]
[1723394633832,0.0026314,60300.0,60299.0,0.8644097]
[1723394634207,0.0026314,60300.0,60299.0,0.91409335]
[1723394634798,0.0026314,60300.0,60299.0,0.86446812]
[1723394635403,0.0026314,60300.0,60299.0,0.86444602]
[1723394636240,0.0026314,60300.0,60299.0,0.91407125]
[1723394636445,0.0026314,60300.0,60299.0,1.10816094]
[1723394636647,0.0026314,60300.0,60299.0,1.78309053]
[1723394636870,0.0026314,60300.0,60299.0,1.88309053]
[1723394637052,0.0026314,60300.0,60299.0,2.26414222]
[1723394637210,0.0026314,60300.0,60299.0,2.26403623]
[1723394637440,0.0026314,60300.0,60299.0,2.11726653]
[1723394637623,0.0026314,60300.0,60299.0,2.11725613]
[1723394638182,0.0026314,60300.0,60299.0,2.39620995]
[1723394638387,0.000831,60301.0,60300.0,0.98690143]
[1723394638504,0.000831,60301.0,60300.0,1.87937443]
[1723394638712,0.000831,60301.0,60300.0,2.34371843]
[1723394638915,0.000831,60301.0,60300.0,2.11154643]
[1723394639379,0.000831,60301.0,60300.0,2.33087096]
[1723394639553,0.000831,60301.0,60300.0,2.33785592]
[1723394639731,0.001831,60301.0,60300.0,2.27873352]
[1723394639937,0.000831,60301.0,60300.0,2.27173352]
[1723394640314,0.002831,60301.0,60300.0,2.29873352]
[1723394640445,0.001831,60301.0,60300.0,2.28573352]
[1723394640854,0.000831,60301.0,60300.0,2.19828595]
[1723394641033,0.001831,60301.0,60300.0,2.5182564]
[1723394641467,0.001831,60301.0,60300.0,2.06677491]
[1723394641727,0.000831,60301.0,60300.0,2.05277491]
[1723394641926,0.001831,60301.0,60300.0,2.06677491]
[1723394642502,0.002831,60301.0,60300.0,2.07477491]
[1723394642728,0.001831,60301.0,60300.0,2.06677491]
[1723394643150,0.001831,60301.0,60300.0,2.07577491]
[1723394643151,0.002831,60301.0,60300.0,2.07577491]
[1723394643359,0.001831,60301.0,60300.0,2.06677491]
[1723394643576,0.001831,60301.0,60300.0,1.51988835]
[1723394643817,0.001831,60301.0,60300.0,1.89279797]
[1723394644033,0.001831,60301.0,60300.0,1.88379797]
[1723394644257,0.002831,60301.0,60300.0,1.48288835]
[1723394644464,0.002831,60301.0,60300.0,1.9411818]
[1723394645294,0.002831,60301.0,60300.0,1.9281818]
[1723394645295,0.001831,60301.0,60300.0,1.9281818]
[1723394645537,0.001831,60301.0,60300.0,1.95531899]
[1723394645730,0.001831,60301.0,60300.0,0.57319284]
[1723394645936,0.002831,60301.0,60300.0,0.43770966]
[1723394646157,0.01064848,60301.0,60300.0,0.66988166]
[1723394646363,0.002831,60301.0,60300.0,0.43770966]
[1723394646555,0.002831,60301.0,60300.0,0.66988166]
[1723394646935,0.001831,60301.0,60300.0,0.65688166]
[1723394647142,0.001831,60301.0,60300.0,0.68288166]
[1723394647498,0.01064094,60301.0,60300.0,0.68988166]
[1723394647721,0.00964094,60301.0,60300.0,0.67988166]
[1723394647934,0.002831,60301.0,60300.0,0.68888166]
[1723394648131,0.002831,60301.0,60300.0,0.15472174]
[1723394648341,0.258815,60301.0,60300.0,0.016913]
[1723394648550,0.7309613,60301.0,60300.0,0.016913]
[1723394648751,0.9631293,60301.0,60300.0,0.016913]
[1723394648956,1.13674479,60301.0,60300.0,0.016913]
[1723394649163,1.13574479,60301.0,60300.0,0.009913]
[1723394649428,1.20584422,60301.0,60300.0,0.009913]
[1723394649601,1.22690573,60301.0,60300.0,0.010913]
[1723394649797,1.22690573,60301.0,60300.0,0.009913]
[1723394649798,1.2257063,60301.0,60300.0,0.009913]
[1723394650219,1.2397063,60301.0,60300.0,0.010913]
[1723394650408,1.2247063,60301.0,60300.0,0.000913]
[1723394650613,1.2247063,60301.0,60300.0,0.001913]
[1723394650813,1.2417063,60301.0,60300.0,0.001913]
[1723394651015,1.2277063,60301.0,60300.0,0.000913]
[1723394651209,1.2247063,60301.0,60300.0,0.000913]
[1723394651411,1.2387063,60301.0,60300.0,0.001913]
[1723394652190,1.2387063,60301.0,60300.0,0.002913]
[1723394652395,1.2527063,60301.0,60300.0,0.002913]
[1723394652643,1.2387063,60301.0,60300.0,0.001913]
[1723394652881,1.2527063,60301.0,60300.0,0.002913]
[1723394654237,1.24290573,60301.0,60300.0,0.002913]
[1723394655767,1.2527063,60301.0,60300.0,0.002913]
[1723394656040,1.2526063,60301.0,60300.0,0.002913]
[1723394656203,1.2386063,60301.0,60300.0,0.001913]
[1723394656399,1.2386063,60301.0,60300.0,0.002913]
[1723394656400,1.22880573,60301.0,60300.0,0.002913]
[1723394656605,1.22880573,60301.0,60300.0,0.001913]
[1723394657219,1.23880573,60301.0,60300.0,0.002913]
[1723394657442,1.22480573,60301.0,60300.0,0.000913]
[1723394657639,1.23680573,60301.0,60300.0,0.001913]
[1723394657843,0.9830293,60301.0,60300.0,0.001913]
[1723394658029,0.7508613,60301.0,60300.0,0.001913]
[1723394658389,0.7388613,60301.0,60300.0,0.000913]
[1723394658594,0.7498613,60301.0,60300.0,0.001913]
[1723394658795,0.7498613,60301.0,60300.0,0.002913]
[1723394658994,0.7618613,60301.0,60300.0,0.002913]
[1723394659194,0.7398613,60301.0,60300.0,0.001913]
[1723394659348,0.7398613,60301.0,60300.0,0.002913]
[1723394659349,0.7508613,60301.0,60300.0,0.002913]
[1723394659778,0.7288613,60301.0,60300.0,0.000913]
[1723394659982,0.7378613,60301.0,60300.0,0.002913]
[1723394660323,0.7388613,60301.0,60300.0,0.001913]
[1723394660519,0.7368613,60301.0,60300.0,0.001913]
[1723394660893,0.7438613,60301.0,60300.0,0.002913]
[1723394663430,0.7438613,60301.0,60291.0,0.0001]
[1723394663431,0.96241057,60292.0,60291.0,0.0001]
[1723394663632,1.27817138,60292.0,60291.0,0.0001]
[1723394663843,1.04222281,60292.0,60291.0,0.0001]
[1723394664087,0.88991981,60292.0,60291.0,0.0001]
[1723394664574,1.13212281,60292.0,60291.0,0.0011]
[1723394665582,1.14112281,60292.0,60291.0,0.0011]
[1723394665965,1.13112281,60292.0,60291.0,0.0001]
[1723394666362,1.5369413,60292.0,60291.0,0.0001]
[1723394666687,1.5459413,60292.0,60291.0,0.0001]
[1723394668019,1.6660413,60292.0,60291.0,0.0001]
[1723394671316,1.6660413,60292.0,60291.0,0.001013]
[1723394672060,1.42403773,60292.0,60291.0,0.001013]
[1723394674083,1.42383814,60292.0,60291.0,0.001013]
[1723394674282,0.92012322,60292.0,60291.0,0.001013]
[1723394685432,1.00292322,60292.0,60291.0,0.001013]
[1723394686617,1.40874171,60292.0,60291.0,0.001013]
[1723394686886,1.48914171,60292.0,60291.0,0.001013]
[1723394687021,1.68053087,60292.0,60291.0,0.001013]
[1723394687370,1.70053087,60292.0,60291.0,0.001013]
[1723394687570,1.68054768,60292.0,60291.0,0.001013]
[1723394688366,1.61251595,60292.0,60291.0,0.001013]
[1723394688569,1.68054783,60292.0,60291.0,0.001013]
[1723394690883,1.61251595,60292.0,60291.0,0.001013]
[1723394691056,1.6807016,60292.0,60291.0,0.001013]
[1723394692296,1.73022928,60292.0,60291.0,0.001013]
[1723394693577,1.68680747,60292.0,60291.0,0.001013]
[1723394693783,1.7549112,60292.0,60291.0,0.001013]
[1723394693985,1.8349112,60292.0,60291.0,0.001013]
[1723394694367,1.85967505,60292.0,60291.0,0.001013]
[1723394694571,1.79157132,60292.0,60291.0,0.001013]
[1723394694813,1.85968442,60292.0,60291.0,0.001013]
[1723394695877,1.76062905,60292.0,60291.0,0.001013]
[1723394697002,1.76145905,60292.0,60291.0,0.001013]
[1723394698411,1.76143351,60292.0,60291.0,0.001013]
[1723394699434,1.78143351,60292.0,60291.0,0.001013]
[1723394699814,1.76143351,60292.0,60291.0,0.001013]
[1723394699967,1.77143351,60292.0,60291.0,0.001013]
[1723394700173,1.76143351,60292.0,60291.0,0.001013]
[1723394700550,2.17778621,60292.0,60291.0,0.001013]
[1723394700762,2.43190006,60292.0,60291.0,0.001013]
[1723394700945,2.2828708,60292.0,60291.0,0.001013]
[1723394701175,2.2738708,60292.0,60291.0,0.001013]
[1723394701349,2.2788708,60292.0,60291.0,0.001013]
[1723394701703,2.2648708,60292.0,60291.0,0.001013]
[1723394702128,2.2788708,60292.0,60291.0,0.001013]
[1723394702578,2.0007211,60292.0,60291.0,0.001013]
[1723394702904,1.98963651,60292.0,60291.0,0.001013]
[1723394703433,2.00363651,60292.0,60291.0,0.001013]
[1723394703664,2.00963651,60292.0,60291.0,0.001013]
[1723394704067,2.02363651,60292.0,60291.0,0.001013]
[1723394704326,2.00948355,60292.0,60291.0,0.001013]
[1723394704521,2.02348355,60292.0,60291.0,0.001013]
[1723394705302,1.44925557,60290.0,60289.0,0.00913]
[1723394705680,3.08765233,60290.0,60289.0,0.00913]
[1723394705871,2.92286044,60290.0,60289.0,0.00913]
[1723394706298,2.92286044,60290.0,60267.0,0.0629]
[1723394706299,0.24206157,60277.0,60267.0,0.0629]
[1723394706502,0.97189017,60277.0,60267.0,0.0629]
[1723394706633,0.97189017,60277.0,60250.0,0.05060554]
[1723394706634,2.89752824,60277.0,60263.0,0.0625]
[1723394706830,3.13719809,60277.0,60263.0,0.0625]
[1723394707032,3.11099193,60277.0,60263.0,0.0625]
[1723394707707,3.04305733,60277.0,60263.0,0.0625]
[1723394707908,3.12435809,60277.0,60263.0,0.0625]
[1723394708138,3.11135809,60277.0,60263.0,0.0625]
[1723394708348,3.12535754,60277.0,60263.0,0.0625]
[1723394708557,2.47313497,60277.0,60276.0,0.07163]
[1723394708760,2.48420048,60277.0,60276.0,0.07163]
[1723394708961,2.46901534,60277.0,60276.0,0.07163]
[1723394709089,2.35121034,60277.0,60276.0,0.00913]
[1723394709296,2.49384485,60277.0,60276.0,0.00913]
[1723394709482,2.41935435,60277.0,60276.0,0.00913]
[1723394709675,2.71210585,60277.0,60276.0,0.009085]
[1723394709918,2.84620585,60277.0,60276.0,0.009085]
[1723394710269,2.85771535,60277.0,60276.0,0.009085]
[1723394710647,2.88571535,60277.0,60276.0,0.009085]
[1723394710802,2.87171535,60277.0,60276.0,0.009085]
[1723394711008,2.88571535,60277.0,60276.0,0.009085]
[1723394711211,2.81757134,60277.0,60276.0,0.009085]
[1723394711415,1.56456602,60277.0,60276.0,0.009085]
[1723394711621,1.60021489,60277.0,60276.0,0.009085]
[1723394711829,1.60021489,60277.0,60276.0,0.004085]
[1723394712033,1.61421489,60277.0,60276.0,0.004085]
[1723394712436,1.60021489,60277.0,60276.0,0.004085]
[1723394712634,1.61421489,60277.0,60276.0,0.004085]
[1723394714238,1.70021489,60277.0,60276.0,0.004085]
[1723394714441,1.70021489,60277.0,60271.0,0.0001]
[1723394714442,0.84278057,60272.0,60271.0,0.0001]
[1723394714633,1.38593731,60272.0,60271.0,0.0001]
[1723394714838,1.89312868,60272.0,60271.0,0.0001]
[1723394715041,1.89332823,60272.0,60271.0,0.0001]
[1723394715248,1.03626823,60272.0,60261.0,0.00913]
[1723394715442,1.24876003,60262.0,60261.0,0.00913]
[1723394715599,1.64489295,60262.0,60261.0,0.00913]
[1723394715757,2.05397399,60262.0,60261.0,0.00913]
[1723394716203,2.05400614,60262.0,60261.0,0.00913]
[1723394716411,2.07400614,60262.0,60261.0,0.00913]
[1723394716611,2.05400614,60262.0,60261.0,0.00913]
[1723394716811,1.69178814,60262.0,60261.0,0.00913]
[1723394717204,1.60838868,60262.0,60261.0,0.00913]
[1723394717428,1.62238868,60262.0,60261.0,0.00913]
[1723394717588,1.69171107,60262.0,60261.0,0.00913]
[1723394717954,1.69171107,60262.0,60261.0,0.14943]
[1723394717955,1.19417011,60262.0,60261.0,0.14943]
[1723394718387,1.40407068,60262.0,60261.0,0.00913]
[1723394718593,1.39007068,60262.0,60261.0,0.00913]
[1723394718836,1.37607068,60262.0,60261.0,0.00913]
[1723394719044,1.38027011,60262.0,60261.0,0.00913]
[1723394719249,1.36627011,60262.0,60261.0,0.00913]
[1723394719682,1.38027011,60262.0,60261.0,0.00913]
[1723394719891,1.38027011,60262.0,60261.0,0.08693]
[1723394720093,1.39427011,60262.0,60261.0,0.08693]
[1723394720495,1.36627011,60262.0,60261.0,0.08693]
[1723394720692,1.39427011,60262.0,60261.0,0.08693]
[1723394721236,1.62238868,60262.0,60261.0,0.00913]
[1723394721452,1.63538868,60262.0,60261.0,0.00913]
[1723394722441,1.40307068,60262.0,60261.0,0.00913]
[1723394722613,1.62138868,60262.0,60261.0,0.00913]
[1723394722840,1.63538868,60262.0,60261.0,0.00913]
[1723394723151,1.62138868,60262.0,60261.0,0.00913]
[1723394723378,1.62238868,60262.0,60261.0,0.00913]
[1723394723993,1.63638868,60262.0,60261.0,0.00913]
[1723394724194,1.62238868,60262.0,60261.0,0.00913]
[1723394724692,1.63638868,60262.0,60261.0,0.00913]
[1723394726240,2.89966168,60262.0,60261.0,0.00913]
[1723394729463,3.45652938,60262.0,60261.0,0.00913]
[1723394729654,3.47952938,60262.0,60261.0,0.00913]
[1723394729877,4.51408665,60262.0,60261.0,0.00913]
[1723394730078,4.33133077,60262.0,60261.0,0.00913]
[1723394730217,4.31733077,60262.0,60261.0,0.00913]
[1723394730420,4.30333077,60262.0,60261.0,0.00913]
[1723394730664,4.31733077,60262.0,60261.0,0.00913]
[1723394730843,4.30333077,60262.0,60261.0,0.00913]
[1723394731040,4.30373621,60262.0,60261.0,0.00913]
[1723394731242,4.31773621,60262.0,60261.0,0.00913]
[1723394731451,4.26817409,60262.0,60261.0,0.00913]
[1723394731646,4.30369887,60262.0,60261.0,0.00913]
[1723394731845,4.31769887,60262.0,60261.0,0.00913]
[1723394732045,4.56401687,60262.0,60261.0,1e-06]
[1723394732369,4.33169887,60262.0,60261.0,1e-06]
[1723394732607,4.11802439,60262.0,60261.0,1e-06]
[1723394732783,3.35775722,60262.0,60261.0,1e-06]
[1723394732986,4.10783948,60262.0,60261.0,1e-06]
[1723394733615,4.15736239,60262.0,60261.0,1e-06]
[1723394734004,1.28776357,60252.0,60251.0,0.0001]
[1723394734211,1.90360721,60252.0,60251.0,0.0001]
[1723394734408,1.91096957,60252.0,60251.0,0.0001]
[1723394734660,1.90496957,60252.0,60251.0,0.0001]
[1723394735778,1.90496957,60252.0,60251.0,0.0812]
[1723394735779,1.25460854,60252.0,60251.0,0.0812]
[1723394735998,1.18452628,60252.0,60251.0,0.1456]
[1723394736521,1.19552628,60252.0,60251.0,0.1456]
[1723394736865,1.20552628,60252.0,60251.0,0.1456]
[1723394737034,1.00542628,60252.0,60251.0,0.1456]
[1723394737645,1.10542628,60252.0,60251.0,0.1456]
[1723394744364,1.17405305,60252.0,60251.0,0.1456]
[1723394745012,1.17405305,60252.0,60251.0,0.1465141]
[1723394745226,1.17405317,60252.0,60251.0,0.1465141]
[1723394745741,1.10542628,60252.0,60251.0,0.1465141]
[1723394745866,1.17410787,60252.0,60251.0,0.1465141]
[1723394747462,1.17423087,60252.0,60251.0,0.1465141]
[1723394747984,1.17423087,60252.0,60251.0,0.14513463]
[1723394750011,1.2166399,60252.0,60251.0,0.14513463]
[1723394750234,1.17423087,60252.0,60251.0,0.14513463]
[1723394750593,1.10542628,60252.0,60251.0,0.14513463]
[1723394750806,1.17381226,60252.0,60251.0,0.14513463]
[1723394751233,1.17381396,60252.0,60251.0,0.14513463]
[1723394751651,1.21622197,60252.0,60251.0,0.14513463]
[1723394751998,1.17381396,60252.0,60251.0,0.14513463]
[1723394753051,1.21622204,60252.0,60251.0,0.14513463]
[1723394754385,1.14783436,60252.0,60251.0,0.14513463]
[1723394754561,1.21611297,60252.0,60251.0,0.14513463]
[1723394757607,1.46586206,60252.0,60251.0,0.14513463]
[1723394757845,1.46588095,60252.0,60251.0,0.14513463]
[1723394758048,1.46587985,60252.0,60251.0,0.14513463]
[1723394758248,1.46671085,60252.0,60251.0,0.14513463]
[1723394758668,1.41706176,60252.0,60251.0,0.14513463]
[1723394759078,1.49153539,60252.0,60251.0,0.14513463]
[1723394759708,1.51635994,60252.0,60251.0,0.14513463]
[1723394759918,1.29706176,60252.0,60251.0,0.14513463]
[1723394760119,1.52941876,60252.0,60251.0,0.14513463]
[1723394760346,1.29706176,60252.0,60251.0,0.14513463]
[1723394760551,1.39659421,60252.0,60251.0,0.14513463]
[1723394760701,1.29706176,60252.0,60251.0,0.14513463]
[1723394761128,1.52941876,60252.0,60251.0,0.0009141]
[1723394761292,1.62895121,60252.0,60251.0,0.0009141]
[1723394761495,1.32829781,60252.0,60251.0,0.0009141]
[1723394761692,1.39597703,60252.0,60251.0,0.0009141]
[1723394762294,1.29644458,60252.0,60251.0,0.0009141]
[1723394762543,1.29644458,60252.0,60251.0,0.0836141]
[1723394762963,1.29584265,60252.0,60251.0,0.0836141]
[1723394763320,1.29584265,60252.0,60251.0,0.1469141]
[1723394764270,1.37049521,60252.0,60251.0,0.1469141]
[1723394764835,0.37772836,60252.0,60251.0,0.15311353]
[1723394765037,0.02919336,60252.0,60251.0,0.26929353]
[1723394765246,0.02919336,60252.0,60251.0,0.50497363]
[1723394765451,0.021831,60252.0,60251.0,1.28134427]
[1723394765652,0.000831,60262.0,60261.0,0.00619943]
[1723394765856,0.000831,60262.0,60261.0,0.15219943]
[1723394766057,0.00788323,60262.0,60261.0,0.15219943]
[1723394766333,0.35636023,60262.0,60261.0,0.15219943]
[1723394767155,0.75249315,60262.0,60261.0,0.146]
[1723394767345,0.98481115,60262.0,60261.0,0.146]
[1723394768299,0.98481115,60262.0,60251.0,0.0009141]
[1723394768300,0.116178,60252.0,60251.0,0.0009141]
[1723394768503,0.82655338,60252.0,60251.0,0.0009141]
[1723394768709,1.06598797,60252.0,60251.0,0.1397141]
[1723394770265,1.07398797,60252.0,60251.0,0.1397141]
[1723394770685,1.08198797,60252.0,60251.0,0.1407141]
[1723394771098,1.07398797,60252.0,60251.0,0.1397141]
[1723394771340,0.13725559,60252.0,60251.0,0.14691353]
[1723394771549,0.02107759,60252.0,60251.0,0.26309353]
[1723394771970,0.014,60252.0,60251.0,0.26641261]
[1723394772179,0.0070695,60252.0,60251.0,0.14591353]
[1723394772401,0.116178,60252.0,60251.0,0.14591353]
[1723394772594,0.01706973,60252.0,60251.0,0.14591353]
[1723394775295,0.01706973,60252.0,60251.0,0.26209353]
[1723394775594,0.01,60252.0,60251.0,0.49777361]
[1723394776345,0.01,60252.0,60251.0,0.74013461]
[1723394776544,0.01,60252.0,60251.0,0.90080083]
[1723394777124,0.01,60252.0,60251.0,1.07129667]